bitfinex/quotes_SOLUSD_20251214
["timestamp","ask_amount","ask_price","bid_price","bid_amount"]
[1765738510247,0.88,130.48,130.46,7.66518473]
[1765738512625,0.2,130.48,130.46,10.37761465]
[1765738512951,0.88,130.48,130.46,10.37761465]
[1765738513525,0.2,130.48,130.46,10.37761465]
[1765738513731,0.2,130.48,130.47,2.71242992]
[1765738513933,0.2,130.48,130.47,11.11242992]
[1765738515058,0.2,130.48,130.47,18.77702714]
[1765738519961,0.2,130.48,130.47,16.72459722]
[1765738520133,0.2,130.48,130.47,18.77659374]
[1765738521953,0.2,130.48,130.47,21.84443129]
[1765738524374,0.2,130.48,130.47,19.79243477]
[1765738524564,0.2,130.48,130.47,18.77659374]
[1765738528081,0.2,130.48,130.47,21.84443129]
[1765738529180,0.2,130.48,130.47,18.77659374]
[1765738530176,0.2,130.48,130.47,21.84443129]
[1765738530481,0.2,130.48,130.47,18.77659374]
[1765738530808,0.2,130.48,130.47,21.84443129]
[1765738531284,0.2,130.48,130.47,18.77659374]
[1765738532958,0.2,130.48,130.47,21.84443129]
[1765738534976,0.2,130.48,130.47,30.93869935]
[1765738535573,0.2,130.49,130.47,50.10019241]
[1765738535855,0.2,130.49,130.48,10.42600632]
[1765738536257,0.2,130.49,130.48,13.4936086]
[1765738538860,1e-08,130.49,130.48,38.45336536]
[1765738539373,1e-08,130.49,130.48,35.63496786]
[1765738540178,1e-08,130.49,130.48,23.77870328]
[1765738540366,1e-08,130.49,130.48,22.76309752]
[1765738543093,1e-08,130.49,130.48,34.6193621]
[1765738544464,1e-08,130.49,130.48,37.68672914]
[1765738544658,0.1,130.51,130.5,13.0470912]
[1765738544867,0.1,130.51,130.5,23.49908772]
[1765738545089,0.1,130.51,130.5,31.87192296]
[1765738545289,0.1,130.51,130.5,34.9390548]
[1765738546158,0.1,130.51,130.5,31.87192296]
[1765738548758,0.1,130.51,130.5,34.9390548]
[1765738553057,0.77,130.51,130.49,7.66321213]
[1765738553273,0.77,130.51,130.48,8.38]
[1765738553691,0.77,130.51,130.49,7.66339726]
[1765738555285,0.77,130.51,130.48,16.04400027]
[1765738556361,10.48466298,130.51,130.48,8.38]
[1765738556566,10.48466298,130.51,130.46,8.38]
[1765738556788,0.72,130.5,130.46,8.38]
[1765738557290,0.72,130.5,130.47,7.66436525]
[1765738559388,2.05232458,130.49,130.45,7.66559661]
[1765738559578,9.71606355,130.49,130.45,7.66559661]
[1765738559774,0.72,130.48,130.45,7.66559661]
[1765738566081,8.38414201,130.48,130.44,8.4]
[1765738566280,11.59248677,130.48,130.44,8.4]
[1765738566484,0.72,130.47,130.43,7.66659943]
[1765738567287,8.38501725,130.47,130.43,7.66659943]
[1765738567673,0.72,130.46,130.43,7.66659943]
[1765738567874,0.72,130.46,130.42,16.06727616]
[1765738568584,0.72,130.46,130.42,19.27562092]
[1765738571021,117.7470912,130.49,130.44,3.20834476]
[1765738571307,0.1,130.51,130.48,3.20834476]
[1765738571513,0.1,130.51,130.49,8.4]
[1765738571804,0.1,130.51,130.49,9.1]
[1765738572100,0.1,130.51,130.5,3.90834476]
[1765738572889,0.1,130.51,130.5,11.57118]
[1765738573211,0.1,130.51,130.5,8.36283524]
[1765738573411,0.1,130.51,130.5,11.57118]
[1765738574092,0.1,130.51,130.5,8.36283524]
[1765738574324,0.1,130.51,130.5,11.57118]
[1765738578408,0.1,130.51,130.5,14.63831184]
[1765738583216,0.82,130.51,130.48,7.66358566]
[1765738583387,0.82,130.51,130.46,22.37067417]
[1765738583894,0.82,130.51,130.47,16.06423598]
[1765738584904,8.48236373,130.51,130.47,16.06423598]
[1765738585212,0.72,130.5,130.47,16.06423598]
[1765738586397,8.38285177,130.5,130.47,8.4]
[1765738586922,0.68,130.49,130.47,8.4]
[1765738589824,0.68,130.49,130.47,19.27261891]
[1765738593025,0.68,130.49,130.47,16.06427415]
[1765738593326,0.68,130.49,130.47,19.27261891]
[1765738593530,0.68,130.49,130.47,19.27087494]
[1765738594145,0.1,130.51,130.48,3.86660079]
[1765738594302,0.1,130.51,130.5,3.20660079]
[1765738594998,0.1,130.51,130.5,3.86660079]
[1765738595198,0.1,130.51,130.5,11.52943603]
[1765738597000,0.78,130.51,130.5,7.66283524]
[1765738597197,0.1,130.51,130.5,10.86943603]
[1765738597611,0.1,130.51,130.5,7.66283524]
[1765738597906,0.1,130.51,130.5,10.86943603]
[1765738600852,0.1,130.51,130.5,7.66283524]
[1765738601054,0.1,130.51,130.5,11.52943603]
[1765738601531,0.1,130.51,130.5,8.32283524]
[1765738601855,0.1,130.51,130.5,11.52943603]
[1765738605559,0.1,130.51,130.5,14.59680307]
[1765738606964,0.1,130.51,130.5,11.52943603]
[1765738607539,0.1,130.51,130.5,10.86943603]
[1765738607751,0.1,130.51,130.5,11.52943603]
[1765738609464,0.1,130.51,130.5,7.66283524]
[1765738609645,0.1,130.51,130.5,11.52943603]
[1765738618544,0.1,130.51,130.5,8.33283524]
[1765738618744,0.1,130.51,130.5,11.53943603]
[1765738620288,0.82,130.51,130.5,7.66283524]
[1765738621980,0.1,130.51,130.5,10.86943603]
[1765738622157,1e-08,130.51,130.5,33.39647215]
[1765738622471,1e-08,130.51,130.5,36.4631337]
[1765738624578,1e-08,130.51,130.5,36.74745684]
[1765738624745,1e-08,130.51,130.5,27.65318878]
[1765738625571,1e-08,130.51,130.5,24.58652723]
[1765738626698,0.72000001,130.51,130.5,23.91652723]
[1765738626842,0.72000001,130.51,130.5,19.24943603]
[1765738627378,0.72000001,130.51,130.5,18.09418214]
[1765738627744,1e-08,130.51,130.5,18.09418214]
[1765738629583,1e-08,130.51,130.5,18.093781]
[1765738630582,1e-08,130.51,130.5,18.763781]
[1765738639813,1e-08,130.51,130.5,10.383781]
[1765738640013,1e-08,130.51,130.5,18.763781]
[1765738640693,1e-08,130.51,130.5,10.383781]
[1765738640997,1e-08,130.51,130.5,18.763781]
[1765738645307,1e-08,130.51,130.5,16.71283524]
[1765738645605,1e-08,130.51,130.5,18.093781]
[1765738647205,1e-08,130.51,130.5,18.793781]
[1765738648805,1e-08,130.51,130.5,18.093781]
[1765738653112,0.70000001,130.51,130.5,18.093781]
[1765738653301,1e-08,130.51,130.5,18.093781]
[1765738654409,1e-08,130.51,130.5,9.713781]
[1765738654608,1e-08,130.51,130.5,18.093781]
[1765738656765,0.70000001,130.51,130.5,7.66283524]
[1765738657010,0.70000001,130.51,130.5,18.093781]
[1765738657308,1e-08,130.51,130.5,18.093781]
[1765738658191,1e-08,130.51,130.5,16.04283524]
[1765738658397,1e-08,130.51,130.5,18.093781]
[1765738658697,1e-08,130.51,130.5,18.793781]
[1765738659010,1e-08,130.51,130.5,18.093781]
[1765738661094,1e-08,130.51,130.5,18.793781]
[1765738665299,1e-08,130.51,130.5,27.88804906]
[1765738665827,1e-08,130.51,130.5,30.95427989]
[1765738667011,1e-08,130.51,130.5,44.00137109]
[1765738667513,1e-08,130.51,130.5,51.879001]
[1765738668821,0.2,130.53,130.52,24.19163917]
[1765738669028,0.2,130.53,130.52,40.23330021]
[1765738669227,0.2,130.53,130.52,40.93330021]
[1765738669727,0.2,130.55,130.54,22.14135926]
[1765738669934,0.7,130.59,130.55,9.09426806]
[1765738670221,0.7,130.59,130.56,8.38]
[1765738670421,0.7,130.59,130.58,2.05027991]
[1765738670618,0.7,130.59,130.58,10.43027991]
[1765738670815,0.1,130.62,130.58,10.43027991]
[1765738671001,0.7,130.6,130.59,2.05027991]
[1765738671201,0.7,130.6,130.59,18.08783408]
[1765738673225,0.7,130.6,130.59,10.43027991]
[1765738673805,0.7,130.6,130.59,18.08783408]
[1765738674227,0.7,130.6,130.59,8.38]
[1765738676344,0.7,130.6,130.58,9.70806713]
[1765738676510,0.7,130.6,130.59,8.38]
[1765738677234,0.7,130.6,130.59,16.03755417]
[1765738677438,0.7,130.6,130.59,8.38]
[1765738677737,0.7,130.6,130.59,16.03755417]
[1765738677919,0.7,130.6,130.59,7.65755417]
[1765738678119,0.7,130.6,130.59,16.03755417]
[1765738678833,0.7,130.6,130.58,9.70822184]
[1765738679040,0.7,130.6,130.59,8.38]
[1765738682011,0.7,130.6,130.59,16.03755417]
[1765738682519,0.7,130.6,130.59,18.08783408]
[1765738683729,0.1,130.62,130.59,16.03755417]
[1765738684043,0.72,130.6,130.59,18.08783408]
[1765738684233,0.82,130.61,130.59,18.77783408]
[1765738684439,0.82,130.61,130.6,2.05027991]
[1765738684761,0.1,130.61,130.6,2.74027991]
[1765738685038,0.1,130.61,130.6,10.39724775]
[1765738686943,0.1,130.62,130.61,8.80994492]
[1765738687110,0.1,130.63,130.61,21.98050474]
[1765738687319,0.1,130.63,130.62,4.79055982]
[1765738687511,0.1,130.63,130.62,7.08423588]
[1765738687717,0.1,130.65,130.64,13.0470912]
[1765738687938,0.1,130.65,130.64,24.62420914]
[1765738688132,0.1,130.65,130.64,25.31420914]
[1765738688937,0.1,130.65,130.64,32.96883253]
[1765738690750,0.72,130.7,130.64,61.19965907]
[1765738690929,0.72,130.7,130.68,3.19711794]
[1765738691130,0.72,130.7,130.69,3.19711794]
[1765738691434,0.72,130.7,130.68,8.38]
[1765738691624,0.72,130.7,130.69,3.19711794]
[1765738691822,0.72,130.71,130.69,3.19711794]
[1765738694441,0.72,130.71,130.69,10.8487194]
[1765738695058,0.72,130.71,130.69,7.65160146]
[1765738695255,0.72,130.71,130.69,10.8487194]
[1765738696728,8.37095906,130.71,130.68,8.38]
[1765738697233,0.72,130.7,130.68,8.38]
[1765738698069,0.72,130.7,130.66,3.19711794]
[1765738698263,0.72,130.7,130.67,16.03285212]
[1765738699056,8.37114584,130.7,130.67,8.38]
[1765738699357,8.37114584,130.7,130.67,11.57711794]
[1765738699559,0.72,130.69,130.67,11.57711794]
[1765738700456,0.72,130.69,130.67,19.22985145]
[1765738701450,0.72,130.69,130.67,10.84985145]
[1765738701759,0.72,130.69,130.67,19.22971941]
[1765738702153,0.72,130.69,130.67,16.03273351]
[1765738702340,0.72,130.69,130.67,19.22971941]
[1765738705166,7.65069099,130.71,130.68,3.1969859]
[1765738705366,0.72,130.71,130.69,3.1969859]
[1765738705584,0.72,130.71,130.7,3.1969859]
[1765738706068,0.72,130.72,130.7,3.1969859]
[1765738707946,0.72,130.72,130.69,7.65140749]
[1765738708162,0.72,130.72,130.7,3.1969859]
[1765738710772,0.72,130.72,130.7,10.84804337]
[1765738712074,0.72,130.72,130.7,7.65105747]
[1765738712252,0.72,130.72,130.69,11.53841011]
[1765738713877,0.72,130.72,130.7,11.5769859]
[1765738714057,104.7,130.74,130.71,3.1969859]
[1765738714245,21.34542877,130.75,130.71,3.8869859]
[1765738714451,0.65,130.74,130.71,3.8869859]
[1765738715374,0.65,130.74,130.71,3.1969859]
[1765738716060,8.29883722,130.74,130.71,3.1969859]
[1765738716376,0.65,130.74,130.72,3.1969859]
[1765738716574,0.65,130.74,130.71,8.34048779]
[1765738716575,0.65,130.73,130.71,8.34048779]
[1765738716753,0.65,130.73,130.72,3.1969859]
[1765738716954,0.65,130.73,130.71,11.53747369]
[1765738717581,0.65,130.73,130.71,10.84747369]
[1765738718183,0.65,130.73,130.71,7.65048779]
[1765738718481,0.65,130.73,130.71,7.65041238]
[1765738718781,0.65,130.73,130.71,10.84739828]
[1765738719369,0.65,130.73,130.71,7.65041238]
[1765738719570,0.65,130.73,130.71,10.84739828]
[1765738720978,0.65,130.74,130.72,10.84682414]
[1765738721288,0.65,130.74,130.72,3.1969859]
[1765738722261,0.65,130.74,130.71,10.84737962]
[1765738722665,0.65,130.74,130.71,11.53737962]
[1765738724082,0.65,130.74,130.71,7.65039372]
[1765738724285,0.65,130.74,130.71,10.84737962]
[1765738725284,0.65,130.74,130.71,11.53737962]
[1765738726590,0.65,130.74,130.71,19.91737962]
[1765738731079,0.65,130.74,130.72,0.69]
[1765738731278,0.65,130.74,130.71,11.53737962]
[1765738731470,0.65,130.74,130.71,19.91737962]
[1765738731673,0.65,130.74,130.71,11.53737962]
[1765738731876,0.65,130.74,130.71,19.91737962]
[1765738735713,8.29877595,130.74,130.71,19.91737962]
[1765738736206,7.64877595,130.74,130.71,19.91737962]
[1765738736408,0.71,130.73,130.7,3.1969859]
[1765738736608,0.71,130.73,130.71,8.38]
[1765738738194,8.35955635,130.73,130.71,8.38]
[1765738738606,8.35955635,130.73,130.69,10.84719928]
[1765738738815,0.71,130.72,130.69,19.22719928]
[1765738738994,0.71,130.72,130.69,19.92719928]
[1765738740319,0.71,130.72,130.69,19.22719928]
[1765738740608,8.35955635,130.73,130.7,3.89568654]
[1765738740816,0.71,130.72,130.7,3.19568654]
[1765738743620,8.36008154,130.72,130.69,16.73151274]
[1765738743788,8.36008154,130.72,130.69,12.27568654]
[1765738744187,8.36008154,130.72,130.69,19.92726626]
[1765738745390,0.71,130.72,130.69,19.92726626]
[1765738745817,7.64959133,130.73,130.71,3.19568654]
[1765738746310,7.64959133,130.73,130.71,3.89568654]
[1765738746508,7.64959133,130.73,130.71,0.7]
[1765738746705,8.35959133,130.73,130.71,0.7]
[1765738747822,0.71,130.73,130.71,2.74500346]
[1765738748194,8.35946682,130.73,130.71,2.74500346]
[1765738748395,8.35946682,130.73,130.7,10.39584051]
[1765738753502,8.35946682,130.73,130.7,8.35083705]
[1765738753730,8.35946682,130.73,130.7,10.39584051]
[1765738754331,0.71,130.73,130.7,10.39584051]
[1765738755725,7.64902753,130.74,130.71,0.7]
[1765738755932,7.64902753,130.74,130.71,2.74500346]
[1765738756135,7.64902753,130.74,130.72,0.7]
[1765738756632,8.35902753,130.74,130.72,0.7]
[1765738757537,8.35902753,130.74,130.71,2.04500346]
[1765738757837,8.35902753,130.74,130.71,2.74500346]
[1765738758021,7.64902753,130.74,130.71,2.04500346]
[1765738758228,0.71,130.73,130.7,9.69584051]
[1765738758541,0.71,130.73,130.7,10.39584051]
[1765738759439,8.35953418,130.73,130.7,10.39584051]
[1765738761035,8.35953418,130.73,130.7,8.35083705]
[1765738765848,7.64876854,130.74,130.7,8.35083705]
[1765738766140,8.35876854,130.74,130.7,10.39584051]
[1765738766446,2.9993266,130.73,130.66,0.69]
[1765738766644,13.0470912,130.71,130.66,2.73500346]
[1765738766843,13.0470912,130.71,130.66,10.38805931]
[1765738767148,0.67,130.7,130.67,7.65286242]
[1765738767524,0.67,130.7,130.67,10.37786588]
[1765738769420,8.32112943,130.7,130.67,10.37786588]
[1765738770446,0.67,130.69,130.66,8.3334517]
[1765738770651,0.67,130.69,130.67,2.04500346]
[1765738771150,0.67,130.69,130.67,2.72500346]
[1765738771849,0.67,130.69,130.67,10.37786019]
[1765738772047,8.32112943,130.7,130.67,10.37786019]
[1765738772427,0.67,130.69,130.67,0.68]
[1765738772727,8.32112943,130.7,130.67,0.68]
[1765738772951,0.67,130.69,130.67,2.72620374]
[1765738773425,0.67,130.69,130.67,10.37903918]
[1765738778164,0.67,130.69,130.67,8.33283544]
[1765738778873,7.65112943,130.7,130.67,8.33283544]
[1765738779167,0.67,130.69,130.67,8.33283544]
[1765738779767,0.67,130.69,130.67,0.68]
[1765738780970,0.67,130.69,130.67,2.72620374]
[1765738781261,0.67,130.69,130.67,0.68]
[1765738781262,8.32185465,130.69,130.67,0.68]
[1765738781660,0.67,130.69,130.67,0.68]
[1765738782169,8.32172674,130.69,130.67,0.68]
[1765738784379,0.67,130.69,130.67,0.68]
[1765738784876,8.32181019,130.69,130.67,0.68]
[1765738785851,8.32181019,130.69,130.66,2.72620374]
[1765738786179,8.32181019,130.69,130.66,11.10620374]
[1765738786554,8.32181019,130.69,130.67,0.68]
[1765738790882,7.65136146,130.7,130.67,0.68]
[1765738791083,0.67,130.69,130.67,0.68]
[1765738793181,7.65136146,130.7,130.67,0.68]
[1765738793182,7.65136146,130.7,130.67,2.72620374]
[1765738793564,8.32136146,130.7,130.68,0.68]
[1765738793887,8.32136146,130.7,130.67,2.72620374]
[1765738794588,8.32136146,130.7,130.67,2.04620374]
[1765738794764,8.32136146,130.7,130.67,2.72620374]
[1765738795188,7.65136146,130.7,130.67,0.68]
[1765738795493,0.67,130.69,130.67,2.72620374]
[1765738795787,7.65136146,130.7,130.67,0.68]
[1765738795999,0.67,130.69,130.67,0.68]
[1765738796962,0.67,130.69,130.66,16.0331918]
[1765738797293,8.32172583,130.69,130.66,9.1]
[1765738798004,8.32172583,130.69,130.66,11.14620374]
[1765738800201,8.32172583,130.69,130.66,9.1]
[1765738800500,0.72,130.68,130.64,8.37447613]
[1765738800669,2.76620374,130.68,130.63,22.98410266]
[1765738800872,2.76620374,130.68,130.62,8.38]
[1765738800873,2.04620374,130.67,130.62,8.38]
[1765738801101,0.72,130.67,130.62,16.75560185]
[1765738801288,0.72,130.66,130.63,0.72]
[1765738801603,8.3719313,130.69,130.65,2.04620374]
[1765738801803,8.3719313,130.69,130.66,2.04620374]
[1765738801804,7.6519313,130.69,130.66,2.04620374]
[1765738802287,8.3719313,130.69,130.67,0.72]
[1765738802468,8.3719313,130.69,130.66,2.76620374]
[1765738802674,8.3719313,130.69,130.66,0.72]
[1765738803396,0.72,130.68,130.65,8.38]
[1765738804309,0.72,130.68,130.65,9.1]
[1765738804681,0.72,130.68,130.65,0.72]
[1765738804682,7.65286599,130.67,130.65,0.72]
[1765738805120,8.37286599,130.67,130.65,0.72]
[1765738806725,7.65228037,130.68,130.65,0.72]
[1765738807070,8.37228037,130.68,130.65,0.72]
[1765738807411,7.65228037,130.68,130.65,0.72]
[1765738807733,8.37195132,130.69,130.65,10.42019208]
[1765738808249,8.37195132,130.69,130.66,0.72]
[1765738809044,7.65110941,130.7,130.66,10.41954421]
[1765738809222,8.37110941,130.7,130.66,10.41954421]
[1765738809422,8.37110941,130.7,130.67,0.72]
[1765738810246,0.72,130.69,130.67,0.72]
[1765738810552,0.72,130.69,130.65,10.85111702]
[1765738810776,0.72,130.69,130.67,0.72]
[1765738811056,0.72,130.69,130.66,0.72]
[1765738812083,0.72,130.69,130.66,8.37341296]
[1765738812371,8.37192636,130.69,130.64,32.0823419]
[1765738812540,11.56926656,130.69,130.64,8.38]
[1765738812744,0.72,130.68,130.65,0.72]
[1765738813449,8.37247797,130.68,130.65,0.72]
[1765738815340,7.65169485,130.69,130.65,11.57122213]
[1765738815540,8.37169485,130.69,130.65,8.37388193]
[1765738815763,0.72,130.68,130.66,0.72]
[1765738815939,0.72,130.68,130.65,7.65388193]
[1765738816139,0.72,130.68,130.65,8.37388193]
[1765738817170,0.72,130.68,130.6,68.0176584]
[1765738817171,11.56971692,130.68,130.62,3.9173402]
[1765738817347,3.1973402,130.67,130.62,16.75576164]
[1765738817547,13.5802256,130.67,130.63,0.72]
[1765738817757,0.72,130.66,130.63,0.72]
[1765738818464,8.37400179,130.66,130.63,0.72]
[1765738819972,7.65400179,130.66,130.63,0.72]
[1765738821342,8.37400179,130.66,130.63,0.72]
[1765738821995,8.37435977,130.65,130.6,11.56903505]
[1765738822145,8.37435977,130.65,130.6,12.2973402]
[1765738822350,22.39017052,130.64,130.61,0.72]
[1765738823275,30.04518856,130.64,130.61,0.72]
[1765738823868,0.72,130.63,130.6,19.23420512]
[1765738824051,30.04518856,130.64,130.61,0.72]
[1765738826374,0.68,130.63,130.6,8.38]
[1765738826756,19.91420512,130.63,130.6,8.38]
[1765738827176,19.91420512,130.63,130.6,9.07]
[1765738827375,19.23420512,130.63,130.6,8.38]
[1765738827566,0.71,130.62,130.59,8.38]
[1765738827773,8.36601427,130.62,130.59,9.07]
[1765738828383,19.22127468,130.62,130.59,9.07]
[1765738830396,18.51127468,130.62,130.6,0.69]
[1765738830601,7.65545463,130.63,130.6,3.8873402]
[1765738830890,7.65545463,130.63,130.61,3.1973402]
[1765738831095,7.65545463,130.63,130.61,3.8873402]
[1765738831398,7.65545463,130.63,130.61,0.69]
[1765738832086,123.92024424,130.64,130.61,0.69]
[1765738832274,112.35482978,130.64,130.61,3.8873402]
[1765738832470,113.06482978,130.64,130.61,0.69]
[1765738832674,0.71,130.63,130.6,3.8873402]
[1765738833071,113.06482978,130.64,130.6,3.8873402]
[1765738833264,113.06482978,130.64,130.61,0.69]
[1765738833788,8.36566041,130.63,130.6,3.8873402]
[1765738835580,8.36566041,130.63,130.6,0.69]
[1765738836595,7.65566041,130.63,130.6,0.69]
[1765738836798,8.36604052,130.62,130.59,8.38]
[1765738837102,8.36604052,130.62,130.59,9.07]
[1765738838581,8.36604052,130.62,130.58,7.6579179]
[1765738838582,0.71,130.61,130.57,9.07]
[1765738838890,7.65696784,130.6,130.57,8.38]
[1765738839377,0.71,130.59,130.57,8.38]
[1765738839700,0.71,130.59,130.55,16.72968968]
[1765738840007,3.9073402,130.59,130.55,8.38]
[1765738840205,0.71,130.59,130.55,8.38]
[1765738840372,0.71,130.58,130.55,12.2673402]
[1765738840788,0.71,130.58,130.55,19.92714547]
[1765738841599,7.6576533,130.59,130.55,19.23714547]
[1765738841900,7.6576533,130.59,130.56,0.69]
[1765738842599,8.3676533,130.59,130.56,0.69]
[1765738842774,7.6576533,130.59,130.56,0.69]
[1765738842985,8.3676533,130.59,130.56,0.69]
[1765738845977,7.6576533,130.59,130.56,0.69]
[1765738846682,8.3676533,130.59,130.56,0.69]
[1765738847282,0.71,130.58,130.55,16.7298152]
[1765738847484,136.89066631,130.6,130.56,0.69]
[1765738847684,156.04271211,130.6,130.56,0.69]
[1765738847892,0.71,130.59,130.56,0.69]
[1765738848310,8.36776201,130.59,130.56,0.69]
[1765738849179,136.899137,130.6,130.56,0.69]
[1765738849393,125.40425435,130.6,130.56,8.34913873]
[1765738849598,125.40425435,130.6,130.57,3.20275326]
[1765738849912,112.35716315,130.6,130.57,3.89275326]
[1765738850313,113.06716315,130.6,130.57,0.69]
[1765738850499,113.06716315,130.6,130.57,3.89275326]
[1765738850708,113.06716315,130.6,130.57,0.69]
[1765738850909,113.06716315,130.6,130.57,3.89275326]
[1765738852313,113.06716315,130.6,130.57,0.69]
[1765738852613,112.35716315,130.6,130.57,3.89275326]
[1765738852782,8.36716315,130.6,130.57,3.89275326]
[1765738853201,7.65659353,130.61,130.58,3.89275326]
[1765738853395,7.65659353,130.61,130.59,3.89275326]
[1765738853792,7.65659353,130.61,130.6,0.69]
[1765738854219,7.65659353,130.61,130.59,3.20275326]
[1765738854419,7.65659353,130.61,130.58,12.27275326]
[1765738854716,8.36659353,130.61,130.58,12.27275326]
[1765738855437,0.71,130.6,130.56,16.72913261]
[1765738855591,0.71,130.6,130.56,16.03913261]
[1765738855792,0.71,130.6,130.56,16.72913261]
[1765738855993,0.71,130.6,130.56,19.93188587]
[1765738856395,8.36698735,130.6,130.57,0.69]
[1765738856812,7.65698735,130.6,130.57,0.69]
[1765738857127,7.65661211,130.61,130.57,3.89275326]
[1765738857423,0.69,130.6,130.57,3.89275326]
[1765738858006,7.65661211,130.61,130.58,0.69]
[1765738858198,7.65661211,130.61,130.57,7.65869153]
[1765738858518,112.35592521,130.62,130.59,3.20275326]
[1765738858728,20.70253263,130.63,130.59,3.20275326]
[1765738859021,21.39253263,130.63,130.6,0.69]
[1765738861332,21.39253263,130.63,130.59,12.27275326]
[1765738861629,20.70253263,130.63,130.6,0.69]
[1765738861825,21.39253263,130.63,130.6,3.89275326]
[1765738862073,21.39253263,130.63,130.6,0.69]
[1765738862246,0.69,130.62,130.59,16.03731207]
[1765738862529,0.69,130.62,130.59,9.07]
[1765738863099,0.69,130.62,130.59,0.69]
[1765738864023,8.34603421,130.62,130.59,0.69]
[1765738865412,7.65603421,130.62,130.59,0.69]
[1765738865616,8.34603421,130.62,130.59,3.89275326]
[1765738865819,8.34603421,130.62,130.59,9.07]
[1765738866636,8.34603421,130.62,130.59,8.38]
[1765738867130,8.34603421,130.62,130.59,9.07]
[1765738867731,0.69,130.61,130.57,0.69]
[1765738867915,0.69,130.61,130.57,9.07]
[1765738868113,0.69,130.61,130.57,16.72862017]
[1765738869326,7.65696784,130.6,130.57,16.72862017]
[1765738870340,8.34696784,130.6,130.57,9.07]
[1765738871517,8.34696784,130.6,130.57,11.11927835]
[1765738871713,8.34696784,130.6,130.57,10.42927835]
[1765738871925,8.34696784,130.6,130.58,0.69]
[1765738872532,7.65650143,130.61,130.58,0.69]
[1765738873238,8.34650143,130.61,130.58,0.69]
[1765738873743,104.7,130.62,130.58,10.39708208]
[1765738873918,104.7,130.62,130.59,2.04927835]
[1765738874114,104.7,130.62,130.59,2.73927835]
[1765738874425,104.7,130.62,130.6,0.69]
[1765738875229,20.70262626,130.63,130.6,8.3468343]
[1765738875752,104.7,130.64,130.61,0.69]
[1765738875924,0.69,130.64,130.61,0.69]
[1765738876316,0.69,130.63,130.61,0.69]
[1765738876937,10.39451175,130.63,130.6,8.38]
[1765738877448,0.69,130.62,130.6,8.38]
[1765738878717,8.34579876,130.62,130.6,8.38]
[1765738879443,0.69,130.62,130.6,9.07]
[1765738879628,2.04927835,130.64,130.6,16.03682406]
[1765738879629,7.65478937,130.64,130.6,16.03682406]
[1765738879823,8.34478937,130.64,130.61,0.69]
[1765738880023,0.69,130.63,130.6,16.72682406]
[1765738880235,8.34541896,130.63,130.6,8.38]
[1765738880442,0.69,130.62,130.6,8.38]
[1765738882269,8.34592209,130.62,130.6,8.38]
[1765738882456,7.65592209,130.62,130.6,8.38]
[1765738883188,8.34547925,130.63,130.6,9.07]
[1765738883356,113.04415542,130.65,130.61,0.69]
[1765738883558,113.04415542,130.65,130.61,2.73874716]
[1765738883756,113.04415542,130.65,130.61,0.69]
[1765738884081,113.04415542,130.65,130.62,0.69]
[1765738884291,112.35415542,130.65,130.62,2.73874716]
[1765738884594,112.35415542,130.65,130.63,0.69]
[1765738885686,113.04415542,130.65,130.63,0.69]
[1765738885956,104.7,130.65,130.63,0.69]
[1765738888881,51.70114387,130.68,130.63,18.77395131]
[1765738888882,7.65306597,130.67,130.63,18.77395131]
[1765738889280,8.31306597,130.67,130.64,0.7]
[1765738889737,8.33354936,130.66,130.63,16.03520415]
[1765738889862,8.33354936,130.66,130.63,16.70520415]
[1765738890964,0.68,130.66,130.63,16.70520415]
[1765738892082,0.68,130.66,130.63,16.03520415]